bitfinex-derivatives/quotes_SOLF0:USTF0_20250817
["timestamp","ask_amount","ask_price","bid_price","bid_amount"]
[1755399034214,2.96,191.34,191.22,3.27545245]
[1755399034618,2.96,191.34,191.24,5.2257]
[1755399034822,2.96,191.34,191.22,3.27545245]
[1755399035720,2.96,191.34,191.25,5.2255]
[1755399036410,2.96,191.34,191.26,5.2253]
[1755399037914,2.96,191.34,191.25,5.2255]
[1755399038112,2.96,191.34,191.19,3.27545245]
[1755399038311,351.0,191.36,191.19,3.27545245]
[1755399038312,2.96,191.32,191.19,3.27545245]
[1755399038512,2.96,191.32,191.2,5.2268]
[1755399038713,2.96,191.32,191.2,7.15566949]
[1755399040214,2.96,191.32,191.2,1.92886949]
[1755399040419,1.92886949,191.33,191.13,351.32]
[1755399040420,2.96,191.29,191.17,1.92886949]
[1755399040724,2.96,191.29,191.13,351.32]
[1755399040725,2.96,191.29,191.13,354.59477417]
[1755399041121,4.39741311,191.28,191.13,354.59477417]
[1755399041316,149.02,191.34,191.01,5.7361556]
[1755399041317,2.96,191.26,191.01,5.7361556]
[1755399041520,2.96,191.24,191.1,5.2295]
[1755399041720,2.96,191.24,191.12,3.27477417]
[1755399042416,351.0,191.36,191.2,3.27477417]
[1755399042417,2.96,191.27,191.2,3.27477417]
[1755399042624,2.96,191.27,191.21,5.2265]
[1755399043224,2.96,191.26,191.22,5.2264]
[1755399043520,15.7,191.35,191.2,3.27477417]
[1755399043724,2.96,191.24,191.21,5.2267]
[1755399043925,2.96,191.24,191.2,3.27477417]
[1755399044428,2.96,191.24,191.21,5.2266]
[1755399044628,15.7,191.33,191.16,3.27477417]
[1755399044830,2.96,191.31,191.16,3.27477417]
[1755399045028,2.96,191.29,191.18,5.2274]
[1755399045228,2.96,191.27,191.18,5.2274]
[1755399045530,2.96,191.27,191.16,3.27477417]
[1755399046324,2.96,191.27,191.19,5.2272]
[1755399048229,4.41548639,191.26,191.16,3.27477417]
[1755399048430,2.91,191.25,191.16,3.27477417]
[1755399048925,2.91,191.25,191.17,5.2276]
[1755399049525,2.91,191.25,191.16,8.50277417]
[1755399049828,2.91,191.25,191.16,3.27477417]
[1755399050130,2.91,191.25,191.18,5.2275]
[1755399050731,2.91,191.25,191.19,5.2272]
[1755399050929,2.91,191.25,191.16,3.27477417]
[1755399051331,2.91,191.25,191.2,3.27477417]
[1755399051631,2.91,191.27,191.2,3.27477417]
[1755399051828,2.91,191.35,191.26,5.2253]
[1755399052030,2.91,191.33,191.24,3.27477417]
[1755399052330,2.91,191.31,191.25,5.2256]
[1755399053833,2.91,191.31,191.2,3.27477417]
[1755399054032,2.91,191.29,191.2,3.27477417]
[1755399054235,2.91,191.29,191.21,5.2265]
[1755399054638,4.4017941,191.28,191.21,5.2265]
[1755399054939,2.91,191.34,191.22,5.2264]
[1755399055140,2.91,191.32,191.22,5.2264]
[1755399055337,2.91,191.3,191.22,5.2264]
[1755399055537,2.91,191.28,191.22,5.2264]
[1755399057440,2.91,191.28,191.2,3.27477417]
[1755399057838,15.7,191.35,191.2,3.27477417]
[1755399058036,2.91,191.26,191.21,5.2265]
[1755399058237,4.40409042,191.34,191.21,5.2265]
[1755399058238,2.91,191.25,191.21,5.2265]
[1755399059035,2.91,191.34,191.21,5.2265]
[1755399059233,4.40423262,191.33,191.2,8.50177417]
[1755399059433,2.91,191.31,191.2,8.50177417]
[1755399059737,2.91,191.29,191.2,3.27477417]
[1755399059938,2.91,191.27,191.16,3.27477417]
[1755399060345,2.91,191.25,191.12,351.34]
[1755399060542,2.91,191.23,191.14,3.27477417]
[1755399060939,2.91,191.23,191.08,9.01092977]
[1755399061239,2.91,191.21,191.08,3.27477417]
[1755399061434,2.91,191.19,191.04,3.27477417]
[1755399061634,2.91,191.17,191.04,3.27477417]
[1755399061835,2.91,191.15,191.04,3.27477417]
[1755399063147,2.91,191.15,191.03,5.2314]
[1755399063350,2.91,191.15,191.0,354.57477417]
[1755399063840,2.91,191.15,191.08,3.27477417]
[1755399065149,2.91,191.14,191.11,5.2292]
[1755399065544,351.3,191.23,191.08,3.27477417]
[1755399065842,2.91,191.21,191.04,3.27477417]
[1755399066149,2.91,191.19,191.04,3.27477417]
[1755399066739,2.91,191.19,191.1,5.2296]
[1755399067044,2.91,191.19,191.04,45.27477417]
[1755399068239,2.91,191.19,191.03,3.27477417]
[1755399068641,2.91,191.19,191.07,5.2305]
[1755399069047,2.91,191.19,191.03,3.27477417]
[1755399069250,2.91,191.17,191.03,3.27477417]
[1755399069938,2.91,191.17,191.06,5.2308]
[1755399070345,2.91,191.17,191.03,3.27477417]
[1755399071041,2.91,191.17,191.05,5.231]
[1755399071547,2.91,191.17,191.03,3.27477417]
[1755399073549,2.91,191.17,191.03,8.50617417]
[1755399074446,2.91,191.17,191.03,3.27477417]
[1755399075244,2.91,191.17,191.07,3.27477417]
[1755399075644,2.91,191.2,191.11,3.27477417]
[1755399075844,351.3,191.23,191.0,484.48]
[1755399075845,79.82987278,191.32,191.15,3.27477417]
[1755399076049,2.91,191.3,191.15,3.27477417]
[1755399076455,2.91,191.3,191.19,5.227]
[1755399076758,2.91,191.3,191.19,3.27477417]
[1755399078254,2.91,191.3,191.1,136.45477417]
[1755399078456,2.91,191.3,191.23,5.2261]
[1755399078956,2.91,191.3,191.21,5.2264]
[1755399079155,2.91,191.3,191.2,3.27477417]
[1755399079458,2.91,191.3,191.16,3.27477417]
[1755399079654,2.91,191.3,191.19,5.227]
[1755399080354,2.98,191.28,191.12,3.27477417]
[1755399081354,2.98,191.28,191.16,5.2278]
[1755399081955,2.98,191.28,191.12,3.27477417]
[1755399083655,18.67,191.28,191.12,3.27477417]
[1755399083859,2.98,191.26,191.12,3.27477417]
[1755399085060,2.98,191.26,191.19,5.2272]
[1755399085261,2.98,191.26,191.16,3.27477417]
[1755399086857,2.98,191.26,191.19,5.2272]
[1755399087056,2.98,191.26,191.16,3.27477417]
[1755399087763,2.98,191.26,191.17,5.2275]
[1755399088664,2.98,191.26,191.16,3.27477417]
[1755399089257,2.98,191.26,191.18,5.2275]
[1755399093168,2.98,191.26,191.19,5.2271]
[1755399093469,2.98,191.26,191.16,45.27477417]
[1755399093864,2.98,191.26,191.07,367.5571556]
[1755399093865,2.98,191.26,191.12,3.27477417]
[1755399094272,2.98,191.26,191.16,5.2279]
[1755399094869,2.98,191.26,191.14,5.2283]
[1755399095168,2.98,191.26,191.12,3.27477417]
[1755399096871,2.98,191.26,191.14,5.2285]
[1755399097759,2.98,191.26,191.15,5.2283]
[1755399097967,2.98,191.26,191.1,42.0]
[1755399097968,2.98,191.26,191.1,45.27477417]
[1755399098163,2.98,191.26,191.17,5.2277]
[1755399098368,2.98,191.26,191.14,3.27477417]
[1755399099573,2.98,191.26,191.1,3.27477417]
[1755399100270,2.98,191.26,191.13,5.2288]
[1755399100462,4.38852758,191.25,191.13,5.2288]
[1755399100669,2.98,191.26,191.13,5.2288]
[1755399100972,2.98,191.24,191.13,5.2288]
[1755399103966,2.98,191.21,191.02,3.27477417]
[1755399104275,2.98,191.18,191.02,3.27477417]
[1755399104471,2.98,191.16,191.02,3.27477417]
[1755399106274,2.98,191.16,191.04,5.2313]
[1755399106671,2.98,191.16,191.02,3.27477417]
[1755399107375,2.98,191.16,191.04,5.2313]
[1755399107580,2.98,191.16,191.0,3.27477417]
[1755399107975,2.98,191.16,191.02,5.2318]
[1755399108167,2.98,191.16,191.0,3.27477417]
[1755399108168,2.83,191.14,191.0,3.27477417]
[1755399108375,4.39412444,191.13,191.0,3.27477417]
[1755399108571,2.83,191.12,191.01,5.2321]
[1755399108770,2.83,191.12,191.0,3.27477417]
[1755399109167,2.83,191.12,191.04,5.2311]
[1755399109376,2.83,191.12,191.0,3.27477417]
[1755399110576,2.83,191.12,191.06,5.2307]
[1755399110778,2.83,191.12,191.0,3.27477417]
[1755399110978,2.83,191.12,191.04,5.2312]
[1755399111278,2.83,191.12,191.0,3.27477417]
[1755399111583,2.83,191.12,191.03,5.2315]
[1755399111873,2.83,191.12,191.0,3.27477417]
[1755399112481,2.83,191.12,191.04,5.2311]
[1755399112672,2.83,191.12,191.0,3.27477417]
[1755399113179,2.83,191.12,191.02,5.2318]
[1755399113478,2.83,191.12,191.0,3.27477417]
[1755399113982,2.83,191.12,190.96,487.59477417]
[1755399114376,2.83,191.12,191.01,5.2321]
[1755399114983,2.83,191.12,191.03,5.2316]
[1755399115180,2.83,191.12,191.0,3.27477417]
[1755399116089,2.83,191.12,191.0,8.50717417]
[1755399116291,2.83,191.12,191.0,3.27477417]
[1755399117492,2.83,191.12,191.03,5.2315]
[1755399118879,2.83,191.12,191.02,5.2318]
[1755399120893,2.83,191.12,191.0,3.27477417]
[1755399121496,2.83,191.12,191.03,5.2315]
[1755399121690,2.83,191.12,191.0,3.27477417]
[1755399122089,2.83,191.12,191.05,5.231]
[1755399122891,2.83,191.12,191.04,3.27477417]
[1755399123388,500.01,191.21,191.07,5.2304]
[1755399123589,2.83,191.19,191.04,3.27477417]
[1755399123991,2.83,191.19,191.08,5.2302]
[1755399124192,2.83,191.19,191.04,3.27477417]
[1755399124594,2.83,191.19,191.04,45.27477417]
[1755399125195,2.83,191.19,191.07,5.2305]
[1755399126496,2.83,191.19,191.08,5.2302]
[1755399128595,2.83,191.19,191.08,7.16135926]
[1755399129395,2.83,191.19,191.09,5.2298]
[1755399129597,2.83,191.19,191.04,42.0]
[1755399129598,2.83,191.19,191.11,1.93115926]
[1755399130995,2.83,191.19,191.08,1.93115926]
[1755399131193,2.83,191.19,191.09,5.2299]
[1755399131398,2.83,191.19,191.08,1.93115926]
[1755399131701,7.23455584,191.18,191.04,43.93115926]
[1755399131896,2.83,191.17,191.04,1.93115926]
[1755399132995,2.83,191.15,191.04,1.93115926]
[1755399133594,2.83,191.15,191.05,5.231]
[1755399136205,2.83,191.15,191.04,1.93115926]
[1755399136206,2.83,191.15,191.04,7.16245926]
[1755399137198,2.83,191.15,191.04,1.93115926]
[1755399141201,2.83,191.15,191.04,7.16245926]
[1755399142099,2.83,191.15,191.05,5.2309]
[1755399145409,2.83,191.15,191.06,5.2307]
[1755399146006,2.83,191.15,191.07,1.93115926]
[1755399147199,2.83,191.15,191.04,1.93115926]
[1755399147403,2.8,191.13,191.04,1.93115926]
[1755399147612,2.8,191.13,191.07,5.2305]
[1755399148306,5.6737212,191.18,191.08,5.2302]
[1755399148608,2.8,191.16,191.08,5.2302]
[1755399148801,4.37064315,191.15,191.08,5.2302]
[1755399148998,2.8,191.14,191.08,5.2302]
[1755399149408,2.8,191.14,191.07,7.16155926]
[1755399152409,2.8,191.14,191.07,1.93115926]
[1755399154115,2.8,191.14,191.09,5.2297]
[1755399155912,2.8,191.18,191.1,1.93115926]
[1755399156212,2.8,191.16,191.1,1.93115926]
[1755399156612,2.8,191.16,191.11,5.2292]
[1755399156804,2.8,191.18,191.1,1.93115926]
[1755399157006,334.88957349,191.31,191.04,47.7361556]
[1755399157007,357.2337212,191.27,191.16,1.93115926]
[1755399157311,2.8,191.25,191.16,1.93115926]
[1755399157512,4.36712805,191.24,191.16,1.93115926]
[1755399157813,2.8,191.23,191.16,1.93115926]
[1755399158008,4.36434236,191.22,191.12,1.93115926]
[1755399158212,2.8,191.21,191.16,1.93115926]
[1755399159313,2.8,191.2,191.16,7.15915926]
[1755399160314,2.8,191.2,191.17,5.2277]
[1755399161114,351.56,191.27,191.18,5.2275]
[1755399161412,2.8,191.25,191.16,1.93115926]
[1755399162209,4.3583805,191.24,191.16,1.93115926]
[1755399162412,2.8,191.23,191.16,1.93115926]
[1755399163815,2.8,191.23,191.12,1.93115926]
[1755399164008,2.8,191.21,191.12,1.93115926]
[1755399166113,2.8,191.21,191.12,7.16025926]
[1755399167116,2.8,191.21,191.15,1.93115926]
[1755399171418,2.8,191.21,191.15,7.15945926]
[1755399180217,2.8,191.21,191.15,1.93115926]
[1755399180421,2.8,191.21,191.12,1.93115926]
[1755399180923,2.8,191.21,191.13,5.2288]
[1755399183028,2.8,191.21,191.12,1.93115926]
[1755399183228,3.04,191.16,191.03,1.93115926]
[1755399183632,3.04,191.16,191.03,7.16255926]
[1755399185231,1.93115926,191.14,191.0,1.93115926]
[1755399185433,3.04,191.1,190.97,1.93115926]
[1755399186033,3.04,191.1,190.97,7.16415926]
[1755399186437,3.04,191.1,190.97,1.93115926]
[1755399186633,3.04,191.1,190.94,115.39957733]
[1755399186634,3.04,191.07,190.94,1.93115926]
[1755399186935,3.04,191.04,190.92,1.93115926]
[1755399188137,3.04,191.04,190.95,5.2338]
[1755399189137,3.04,191.04,190.92,1.93115926]
[1755399191234,3.04,191.04,190.96,5.2335]
[1755399191440,3.04,191.04,190.92,1.93115926]
[1755399192738,3.04,191.04,190.95,1.93115926]
[1755399193044,3.04,191.04,190.99,5.2327]
[1755399193438,3.04,191.04,190.95,1.93115926]
[1755399193941,3.04,191.04,190.97,5.233]
[1755399194343,3.04,191.04,190.95,1.93115926]
[1755399194543,3.04,191.04,190.96,5.2335]
[1755399194742,3.04,191.04,190.95,1.93115926]
[1755399194743,3.04,191.04,190.92,1.93115926]
[1755399195040,3.04,191.04,190.92,7.16555926]
[1755399195235,3.04,191.04,190.92,1.93115926]
[1755399196742,3.04,191.04,190.93,5.2343]
[1755399198153,3.04,191.04,190.92,7.16575926]
[1755399198345,3.04,191.04,190.92,1.93115926]
[1755399198847,3.04,191.04,190.93,5.2343]
[1755399199946,3.04,191.04,190.92,7.16565926]
[1755399200144,3.04,191.04,190.92,1.93115926]
[1755399200545,3.04,191.04,190.93,5.2343]
[1755399201151,3.04,191.04,190.92,1.93115926]
[1755399202040,3.04,191.04,190.95,5.2337]
[1755399202747,3.04,191.04,190.92,1.93115926]
[1755399204454,3.04,191.04,190.94,5.234]
[1755399204846,3.04,191.04,190.95,1.93115926]
[1755399208046,3.04,191.04,190.95,7.16485926]
[1755399209256,3.04,191.04,190.95,1.93115926]
[1755399210352,3.04,191.04,190.95,7.16495926]
[1755399213156,3.04,191.04,190.95,1.93115926]
[1755399215762,3.04,191.04,190.98,1.93115926]
[1755399216560,2.87,191.05,191.01,1.93115926]
[1755399217560,2.87,191.05,191.01,7.16325926]
[1755399218460,2.87,191.05,191.02,5.2318]
[1755399218961,15.69,191.13,191.01,7.16325926]
[1755399219157,2.87,191.03,191.01,7.16325926]
[1755399219762,2.87,191.03,191.01,1.93115926]
[1755399220064,2.87,191.02,190.87,10.4719]
[1755399220265,15.69,191.13,190.99,1.93115926]
[1755399220465,2.87,191.11,190.99,1.93115926]
[1755399220660,2.87,191.09,190.99,1.93115926]
[1755399221261,2.87,191.09,191.01,5.2319]
[1755399222567,2.87,191.09,191.02,5.2318]
[1755399223264,2.87,191.13,191.05,1.93115926]
[1755399223569,2.87,191.19,191.11,1.93115926]
[1755399223771,2.87,191.18,191.15,1.93115926]
[1755399223971,2.87,191.22,191.15,1.93115926]
[1755399224166,2.87,191.28,191.19,7.15835926]
[1755399224362,2.87,191.26,191.16,1.93115926]
[1755399224668,15.69,191.3,191.22,1.93115926]
[1755399224669,2.87,191.3,191.22,1.93115926]
[1755399224864,2.87,191.3,191.25,1.93115926]
[1755399225170,2.87,191.35,191.28,1.93115926]
[1755399225573,2.87,191.35,191.31,1.93115926]
[1755399225968,2.87,191.37,191.31,1.93115926]
[1755399226673,2.87,191.37,191.24,3.27101489]
[1755399228272,4.26101334,191.36,191.2,3.27101489]
[1755399228473,2.8,191.35,191.2,3.27101489]
[1755399228674,2.8,191.35,191.21,5.2267]
[1755399229376,2.8,191.35,191.23,5.2261]
[1755399229572,2.8,191.35,191.24,3.27101489]
[1755399229773,2.8,191.35,191.24,45.27101489]
[1755399230373,2.8,191.35,191.2,3.27101489]
[1755399230874,2.8,191.34,191.2,3.27101489]
[1755399232272,2.8,191.32,191.21,3.27101489]
[1755399232873,2.8,191.4,191.25,3.27101489]
[1755399233075,2.8,191.4,191.29,3.27101489]
[1755399233978,2.8,191.4,191.3,5.2242]
[1755399234372,2.8,191.4,191.29,3.27101489]
[1755399235978,2.8,191.4,191.25,3.27101489]
[1755399236279,2.8,191.4,191.25,8.49661489]
[1755399236679,2.8,191.4,191.25,3.27101489]
[1755399236880,2.8,191.4,191.29,3.27101489]
[1755399238278,2.8,191.4,191.3,5.224]
[1755399240181,2.8,191.4,191.31,5.2239]
[1755399240883,2.8,191.4,191.29,3.27101489]
[1755399241580,2.8,191.4,191.3,5.224]
[1755399242582,2.8,191.4,191.29,3.27101489]
[1755399242977,2.8,191.4,191.29,8.49541489]
[1755399243774,2.8,191.4,191.29,3.27101489]
[1755399244183,2.8,191.4,191.29,8.49551489]
[1755399245178,2.8,191.4,191.29,3.27101489]
[1755399245979,18.49,191.39,191.25,3.27101489]
[1755399246181,2.8,191.38,191.25,3.27101489]
[1755399246574,18.49,191.38,191.25,3.27101489]
[1755399246787,2.8,191.37,191.25,8.49641489]
[1755399246986,2.8,191.37,191.25,3.27101489]
[1755399247390,2.8,191.36,191.25,3.27101489]
[1755399247686,2.8,191.35,191.21,3.27101489]
[1755399248087,15.69,191.35,191.17,3.27101489]
[1755399248296,2.8,191.3,191.15,3.27101489]
[1755399250898,2.8,191.29,191.15,3.27101489]
[1755399251286,2.8,191.29,191.15,8.49911489]
[1755399251997,2.8,191.29,191.16,5.228]
[1755399252598,2.8,191.29,191.18,5.2275]
[1755399252795,2.8,191.29,191.15,3.27101489]
[1755399253398,2.8,191.29,191.16,5.2278]
[1755399253798,18.49,191.29,191.15,3.27101489]
[1755399254098,2.8,191.27,191.15,3.27101489]
[1755399254802,2.8,191.27,191.11,3.27101489]
[1755399255592,18.49,191.27,191.11,3.27101489]
[1755399255798,18.49,191.27,191.11,8.50021489]
[1755399255799,2.8,191.26,191.11,8.50021489]
[1755399255994,2.8,191.24,191.11,3.27101489]
[1755399257198,18.49,191.23,191.09,5.2299]
[1755399257498,3.05,191.22,191.07,3.27101489]
[1755399257801,3.05,191.22,191.09,5.2299]
[1755399258394,3.05,191.22,191.07,3.27101489]
[1755399258395,3.05,191.22,191.07,8.50131489]
[1755399259296,4.25140421,191.21,191.07,8.50131489]
[1755399259492,15.69,191.2,191.07,3.27101489]
[1755399259799,7.3021148,191.19,191.05,351.14]
[1755399259998,3.05,191.18,191.05,351.14]
[1755399261404,15.69,191.16,191.03,8.50251489]
[1755399261594,3.05,191.15,191.03,3.27101489]
[1755399266303,3.05,191.15,191.07,3.27101489]
[1755399268603,3.05,191.15,191.04,3.27101489]
[1755399269306,3.05,191.15,191.03,42.0]
[1755399269606,3.05,191.15,191.0,3.27101489]
[1755399270304,3.05,191.15,191.0,8.50321489]
[1755399270506,3.05,191.15,191.0,3.27101489]
[1755399270707,18.74,191.13,191.0,3.27101489]
[1755399270899,3.27101489,191.18,190.96,3.27101489]
[1755399270900,3.05,191.11,190.96,3.27101489]
[1755399272509,3.05,191.11,190.98,5.2327]
[1755399273810,3.05,191.11,190.97,5.2332]
[1755399275907,3.05,191.11,190.98,5.2329]
[1755399276113,3.05,191.11,190.96,3.27101489]
[1755399276410,3.05,191.11,190.98,5.2329]
[1755399276610,3.05,191.11,190.96,3.27101489]
[1755399277011,3.05,191.11,191.0,5.2323]
[1755399277417,3.05,191.11,191.0,3.27101489]
[1755399277607,3.05,191.11,191.04,3.27101489]
[1755399277804,3.05,191.13,191.04,3.27101489]
[1755399278212,3.05,191.13,191.04,8.50231489]
[1755399278607,3.05,191.13,191.05,5.231]
[1755399278812,3.05,191.13,191.04,3.27101489]
[1755399280013,3.05,191.13,191.06,5.2307]
[1755399280316,3.05,191.13,191.04,3.27101489]
[1755399281214,3.05,191.13,190.95,0.91092323]
[1755399281410,3.05,191.13,190.97,3.27101489]
[1755399282416,3.05,191.13,191.01,3.27101489]
[1755399285428,3.05,191.13,191.05,3.27101489]
[1755399286025,3.05,191.13,191.08,5.23]
[1755399286426,3.05,191.13,191.06,5.2305]
[1755399286826,3.05,191.13,191.05,3.27101489]
[1755399287626,3.05,191.13,191.05,8.50201489]
[1755399287824,3.05,191.13,191.05,3.27101489]
[1755399288228,3.05,191.13,191.06,5.2307]
[1755399288429,3.05,191.13,191.05,3.27101489]
[1755399290225,3.05,191.13,191.07,5.2304]
[1755399292623,2.93,191.16,191.09,3.27101489]
[1755399292819,2.93,191.16,191.09,45.27101489]
[1755399293227,2.93,191.16,191.12,5.2289]
[1755399293425,2.93,191.16,191.09,45.27101489]
[1755399293825,2.93,191.15,191.12,5.2291]
[1755399294226,2.93,191.15,191.11,5.2293]
[1755399294427,2.93,191.15,191.11,47.2293]
[1755399295030,2.93,191.14,191.11,47.2293]
[1755399295230,2.93,191.26,191.09,8.50071489]
[1755399295433,18.62,191.22,191.05,3.27101489]
[1755399295628,2.93,191.2,191.05,45.27101489]
[1755399295933,2.93,191.18,191.06,5.2307]
[1755399296136,2.93,191.16,191.06,5.2307]
[1755399296328,2.93,191.14,191.06,5.2307]
[1755399296634,2.93,191.14,191.05,8.50201489]
[1755399300132,2.93,191.14,191.05,3.27101489]
[1755399300330,21.3637212,191.2,191.01,3.27101489]
[1755399300331,4.32155176,191.13,191.01,3.27101489]
[1755399300531,2.93,191.11,191.01,3.27101489]
[1755399300832,2.93,191.11,191.02,5.2316]
[1755399301231,2.93,191.11,190.97,3.27101489]
[1755399301429,2.93,191.09,190.97,3.27101489]
[1755399301734,2.93,191.07,190.97,3.27101489]
[1755399301927,2.93,191.05,190.97,3.27101489]
[1755399302334,2.93,191.05,190.94,351.32]
[1755399302535,2.93,191.03,190.94,351.32]
[1755399302737,4.32394812,191.02,190.93,3.27101489]
[1755399302937,2.93,191.01,190.93,3.27101489]
[1755399303139,2.93,191.01,190.93,8.50511489]
[1755399303439,2.93,191.01,190.93,3.27101489]
[1755399306241,2.93,191.01,190.94,5.234]
[1755399306437,2.93,191.01,190.93,3.27101489]
[1755399307041,2.93,191.0,190.97,5.2332]
[1755399308842,2.93,191.0,190.98,5.2329]
[1755399309138,2.93,191.0,190.93,3.27101489]
[1755399309539,2.93,191.02,190.98,5.2328]
[1755399309735,2.93,191.01,190.98,5.2328]
[1755399310041,15.69,191.13,190.98,5.2328]
[1755399310236,8.94473609,191.15,190.98,5.2328]
[1755399310237,18.62,191.1,190.98,5.2328]
[1755399310442,2.93,191.09,190.98,5.2328]
[1755399313141,15.69,191.09,190.97,3.27101489]
[1755399313348,2.93,191.07,190.97,3.27101489]
[1755399318150,2.93,191.07,190.93,8.50521489]
[1755399318151,2.92,191.06,190.93,8.50521489]
[1755399318344,2.92,191.05,190.93,8.50521489]
[1755399318543,15.69,191.05,190.93,3.27101489]
[1755399318743,2.92,191.03,190.9,131.62]
[1755399318941,18.61,191.03,190.9,131.62]
[1755399319141,2.92,191.02,190.9,131.62]
[1755399319341,2.92,191.02,190.9,136.855]
[1755399319542,2.92,191.02,190.9,131.62]
[1755399320042,2.92,191.02,190.9,5.2351]
[1755399320644,2.92,191.02,190.89,8.50631489]
[1755399321238,2.92,191.02,190.89,3.27101489]
[1755399321442,2.92,191.0,190.89,3.27101489]
[1755399321840,2.92,191.0,190.87,5.2359]
[1755399323646,2.92,191.0,190.88,5.2356]
[1755399325846,2.92,190.99,190.88,5.2356]
[1755399327648,2.92,190.99,190.87,5.2359]
[1755399328248,2.92,190.99,190.85,3.27101489]
[1755399328449,2.92,190.99,190.89,3.27101489]
[1755399328752,2.92,190.99,190.85,3.27101489]
[1755399328753,2.92,190.99,190.92,1.93461442]
[1755399329255,2.92,190.99,190.92,7.16921442]
[1755399329448,1.93461442,191.04,190.85,1.93461442]
[1755399329449,2.92,191.04,190.95,1.93461442]
[1755399329755,2.92,191.04,190.98,1.93461442]
[1755399329950,2.92,191.04,190.95,1.93461442]
[1755399330349,2.92,191.04,190.95,7.16831442]
[1755399330647,2.92,191.04,190.92,3.28197281]
[1755399331049,2.92,191.04,190.97,5.233]
[1755399331754,2.92,191.04,190.96,3.28197281]
[1755399331755,2.92,191.04,190.98,5.2329]
[1755399332650,2.92,191.09,190.99,5.2326]
[1755399334857,2.92,191.09,190.96,3.28197281]
[1755399335158,2.92,191.09,191.0,3.28197281]
[1755399335358,2.92,191.09,191.01,5.2319]
[1755399335660,2.92,191.09,191.0,3.28197281]
[1755399335661,2.92,191.1,191.0,3.28197281]
[1755399337158,2.92,191.1,191.04,5.2311]
[1755399337362,2.92,191.1,191.0,3.28197281]
[1755399338258,2.92,191.1,191.05,5.231]
[1755399338458,131.6,191.17,191.05,5.231]
[1755399338662,2.92,191.08,191.05,5.231]
[1755399339057,2.92,191.16,191.0,3.28197281]
[1755399339258,2.92,191.14,191.0,3.28197281]
[1755399339461,2.92,191.12,191.0,3.28197281]
[1755399339762,2.92,191.1,191.0,3.28197281]
[1755399340659,2.92,191.1,191.04,3.28197281]
[1755399341262,2.92,191.1,191.06,5.2307]
[1755399341864,2.92,191.09,191.04,3.28197281]
[1755399342066,2.92,191.19,191.04,3.28197281]
[1755399342258,2.92,191.17,191.04,3.28197281]
[1755399342455,2.92,191.15,191.04,3.28197281]
[1755399343063,2.92,191.15,191.05,5.2308]
[1755399347265,2.92,191.15,191.04,3.28197281]
[1755399347664,2.79,191.2,191.08,3.28197281]
[1755399347864,4.30905878,191.19,191.04,45.28197281]
[1755399348167,2.79,191.17,191.04,45.28197281]
[1755399348569,2.79,191.17,191.06,5.2306]
[1755399348869,2.79,191.17,191.04,45.28197281]
[1755399349057,2.79,191.17,191.06,5.2308]
[1755399350265,2.79,191.17,191.05,5.231]
[1755399351770,2.79,191.17,191.04,45.28197281]
[1755399351771,2.79,191.17,191.04,50.51317281]